[Event "Sheffield Masters 2024"]
[White "Pal,Rohan"]
[Black "O`Gorman,Tom"]
[Site "Sheffield"]
[Round "4.3"]
[Annotator "RC"]
[Result "0-1"]
[Date "2024.04.12"]
[WhiteElo "2142"]
[BlackElo "2321"]
[PlyCount "88"]
[TimeControl "5400+30"]

1. c4 {[%emt 0:0:2]} e6 {[%emt 0:0:10]} 2. g3 {[%emt 0:0:13]} d5 {[%emt 0:0:6]} 3. Bg2 {[%emt 0:0:3]} d4 {[%emt 0:0:9]} 4. Nf3 {[%emt 0:0:4]} c5 {[%emt 0:0:7]} 5. d3 {[%emt 0:1:1]} Nc6 {[%emt 0:0:10]} 6. e3 {[%emt 0:0:11]} Nf6 {[%emt 0:0:7]} 7. exd4 {[%emt 0:0:3]} cxd4 {[%emt 0:0:7]} 8. O-O {[%emt 0:0:6]} Bd6 {[%emt 0:0:6]} 9. Bg5 {[%emt 0:0:7]} h6 {[%emt 0:0:25]} 10. Bxf6 {[%emt 0:0:3]} Qxf6 {[%emt 0:0:7]} 11. Nbd2 {[%emt 0:0:6]} Qe7 {[%emt 0:0:39]} 12. Ne4 {[%emt 0:0:29]} Bc7 {[%emt 0:0:32]} 13. a3 {[%emt 0:0:15]} a5 {[%emt 0:1:47]} 14. b4 {[%emt 0:0:20]} axb4 {[%emt 0:9:53]} 15. axb4 {[%emt 0:0:34]} Rxa1 {[%emt 0:0:23]} 16. Qxa1 {[%emt 0:0:2]} f5 {[%emt 0:4:55]} 17. Ned2 {[%emt 0:15:21]} Nxb4 {[%emt 0:27:15]} 18. Qxd4 {[%emt 0:1:4]} O-O {[%emt 0:3:6]} 19. Qc3 {[%emt 0:2:41]} e5 {[%emt 0:1:55]} 20. Re1 {[%emt 0:2:20]} Nc6 {[%emt 0:1:6]} 21. d4 {[%emt 0:11:17]} e4 {[%emt 0:4:48]} 22. d5 {[%emt 0:1:30]} Ba5 {[%emt 0:14:44]} 23. Qc2 {[%emt 0:9:15]} Nb4 {[%emt 0:12:45]} 24. Qa4 {[%emt 0:2:19]} Bb6 {[%emt 0:1:22]} 25. Nb3 {[%emt 0:4:8]} Nd3 {[%emt 0:1:32]} 26. Re2 {[%emt 0:1:2]} Bd7 {[%emt 0:3:51]} 27. Qa2 {[%emt 0:1:35]} Qb4 {[%emt 0:0:57]} 28. Nfd2 {[%emt 0:3:9]} Be8 {[%emt 0:0:28]} 29. c5 {[%emt 0:3:15]} Nxc5 {[%emt 0:0:15]} 30. Nxc5 {[%emt 0:0:32]} Bxc5 {[%emt 0:1:4]} 31. Nf1 {[%emt 0:1:0]} Bf7 {[%emt 0:1:8]} 32. Ne3 {[%emt 0:0:48]} Bxe3 {[%emt 0:2:9]} 33. Rxe3 {[%emt 0:0:5]} Rd8 {[%emt 0:0:18]} 34. Qc2 {[%emt 0:1:24]} Rxd5 {[%emt 0:0:42]} 35. h4 {[%emt 0:1:38]} b5 {[%emt 0:1:25]} 36. g4 {[%emt 0:1:1]} Qd6 {[%emt 0:1:39]} 37. Re1 {[%emt 0:1:10]} Rc5 {[%emt 0:3:15]} 38. Qb2 {[%emt 0:0:50]} fxg4 {[%emt 0:0:28]} 39. Qa1 {[%emt 0:1:27]} g3 {[%emt 0:1:25]} 40. fxg3 {[%emt 0:2:30]} Qxg3 {[%emt 0:0:27]} 41. Kh1 {[%emt 0:1:15]} Qxh4+ {[%emt 0:0:18]} 42. Kg1 {[%emt 0:0:3]} Qg3 {[%emt 0:0:46]} 43. Rxe4 {[%emt 0:0:57]} Rc2 {[%emt 0:1:19]} 44. Qf1 {[%emt 0:0:30]} Rxg2+ {[%emt 0:0:8]} 0-1

[Event "Sheffield Masters 2024"]
[White "Dunnington,Angus J"]
[Black "Pein,Jonathan"]
[Site "Sheffield"]
[Round "4.4"]
[Annotator "RC"]
[Result "1/2-1/2"]
[Date "2024.04.12"]
[WhiteElo "2317"]
[BlackElo "2247"]
[PlyCount "28"]
[TimeControl "5400+30"]

1. Nf3 {[%emt 0:0:13]} Nf6 {[%emt 0:0:6]} 2. g3 {[%emt 0:0:10]} b6 {[%emt 0:0:12]} 3. Bg2 {[%emt 0:0:19]} Bb7 {[%emt 0:0:5]} 4. O-O {[%emt 0:0:25]} g6 {[%emt 0:0:6]} 5. b3 {[%emt 0:1:50]} Bg7 {[%emt 0:0:5]} 6. Bb2 {[%emt 0:0:3]} O-O {[%emt 0:0:13]} 7. c4 {[%emt 0:0:21]} c5 {[%emt 0:0:19]} 8. d4 {[%emt 0:0:18]} cxd4 {[%emt 0:0:3]} 9. Qxd4 {[%emt 0:0:6]} d6 {[%emt 0:0:4]} 10. Nc3 {[%emt 0:2:49]} Nbd7 {[%emt 0:0:25]} 11. Qd2 {[%emt 0:6:11]} Rc8 {[%emt 0:0:37]} 12. Rfd1 {[%emt 0:1:39]} Nc5 {[%emt 0:0:42]} 13. Rac1 {[%emt 0:3:22]} Nfe4 {[%emt 0:5:48]} 14. Nxe4 {[%emt 0:3:29]} Nxe4 {[%emt 0:0:11]} 1/2-1/2

[Event "Sheffield Masters 2024"]
[White "Kanyamarala,Trisha"]
[Black "Wall,Tim P"]
[Site "Sheffield"]
[Round "4.5"]
[Annotator "RC"]
[Result "0-1"]
[Date "2024.04.12"]
[WhiteElo "2285"]
[BlackElo "2197"]
[PlyCount "90"]
[TimeControl "5400+30"]

1. d4 {[%emt 0:0:8]} g6 {[%emt 0:0:15]} 2. c4 {[%emt 0:0:57]} Bg7 {[%emt 0:0:10]} 3. Nf3 {[%emt 0:0:36]} c5 {[%emt 0:0:45]} 4. d5 {[%emt 0:1:25]} f5 {[%emt 0:0:14]} 5. g3 {[%emt 0:3:22]} Nf6 {[%emt 0:1:43]} 6. Nc3 {[%emt 0:3:59]} d6 {[%emt 0:0:13]} 7. Bg2 {[%emt 0:1:1]} O-O {[%emt 0:0:10]} 8. O-O {[%emt 0:0:39]} Na6 {[%emt 0:0:10]} 9. Rb1 {[%emt 0:8:6]} h6 {[%emt 0:12:55]} 10. a3 {[%emt 0:7:17]} Qe8 {[%emt 0:7:16]} 11. e4 {[%emt 0:7:35]} fxe4 {[%emt 0:12:7]} 12. Nd2 {[%emt 0:0:30]} e3 {[%emt 0:15:22]} 13. fxe3 {[%emt 0:1:19]} g5 {[%emt 0:0:49]} 14. Nde4 {[%emt 0:10:48]} Ng4 {[%emt 0:3:0]} 15. Nf2 {[%emt 0:8:48]} Ne5 {[%emt 0:1:50]} 16. Qe2 {[%emt 0:1:0]} g4 {[%emt 0:4:0]} 17. Nd3 {[%emt 0:4:2]} Rxf1+ {[%emt 0:4:33]} 18. Qxf1 {[%emt 0:1:6]} Nxc4 {[%emt 0:0:58]} 19. Nxc5 {[%emt 0:2:29]} Nxc5 {[%emt 0:2:14]} 20. Qxc4 {[%emt 0:0:13]} Qg6 {[%emt 0:3:24]} 21. e4 {[%emt 0:1:36]} Bd7 {[%emt 0:3:39]} 22. Be3 {[%emt 0:1:30]} Rc8 {[%emt 0:0:42]} 23. Ne2 {[%emt 0:5:27]} b5 {[%emt 0:4:18]} 24. Qb4 {[%emt 0:4:3]} Nd3 {[%emt 0:9:25]} 25. Qd2 {[%emt 0:3:47]} Ne5 {[%emt 0:0:7]} 26. Nf4 {[%emt 0:0:21]} Qh7 {[%emt 0:0:19]} 27. Qe2 {[%emt 0:4:44]} a5 {[%emt 0:1:24]} 28. Rc1 {[%emt 0:4:4]} Nc4 {[%emt 0:1:59]} 29. b3 {[%emt 0:9:41]} Nxa3 {[%emt 0:2:25]} 30. Rxc8+ {[%emt 0:0:9]} Bxc8 {[%emt 0:0:4]} 31. Qa2 {[%emt 0:1:19]} b4 {[%emt 0:0:42]} 32. Bb6 {[%emt 0:0:34]} Bc3 {[%emt 0:2:34]} 33. Bxa5 {[%emt 0:0:24]} e5 {[%emt 0:0:50]} 34. dxe6 {[%emt 0:2:19]} Qa7+ {[%emt 0:0:25]} 35. Kh1 {[%emt 0:0:44]} Qxa5 {[%emt 0:0:31]} 36. Qe2 {[%emt 0:0:54]} Qg5 {[%emt 0:1:1]} 37. Qd3 {[%emt 0:0:53]} Qe5 {[%emt 0:2:56]} 38. Qd1 {[%emt 0:1:2]} Bxe6 {[%emt 0:0:18]} 39. Qf1 {[%emt 0:0:34]} Bf7 {[%emt 0:0:43]} 40. Qa6 {[%emt 0:0:13]} h5 {[%emt 0:0:35]} 41. Qa8+ {[%emt 0:0:14]} Kg7 {[%emt 0:0:13]} 42. h3 {[%emt 0:0:15]} h4 {[%emt 0:1:18]} 43. hxg4 {[%emt 0:0:28]} hxg3 {[%emt 0:0:10]} 44. Nd3 {[%emt 0:0:20]} Qg5 {[%emt 0:0:32]} 45. Qb7 {[%emt 0:0:24]} Bd4 {[%emt 0:0:31]} 0-1

[Event "Sheffield Masters 2024"]
[White "Wall,Tim P"]
[Black "Nagy,Gabor"]
[Site "Sheffield"]
[Round "5.1"]
[Annotator "TA"]
[Result "0-1"]
[Date "2024.04.12"]
[WhiteElo "2197"]
[BlackElo "2436"]
[PlyCount "56"]
[TimeControl "5400+30"]

{[%evp 9,56,35,35,41,43,43,58,51,64,33,41,35,39,37,73,53,72,74,68,39,39,11,9,16,16,28,38,12,-8,18,16,11,19,-51,8,-30,-35,-91,-112,-127,-94,-164,-172,-190,-50,-214,-108,-150,-158]} 1. d4 {[%emt 0:0:3]} Nf6 {[%emt 0:0:35]} 2. Bg5 {[%emt 0:0:13]} c5 {[%emt 0:2:6]} 3. d5 {[%emt 0:0:59]} d6 {[%emt 0:3:53]} 4. Nc3 {[%emt 0:1:31]} g6 {[%emt 0:0:52]} 5. e4 {[%emt 0:0:39]} Bg7 {[%emt 0:0:24]} 6. Bb5+ {[%emt 0:2:24]} Nbd7 {[%emt 0:1:14]} 7. a4 {[%emt 0:0:24]} O-O {[%emt 0:1:37]} 8. Nf3 {[%emt 0:0:32] White is slightly better.} h6 {[%emt 0:4:41]} 9. Bf4 {[%emt 0:2:8]} Ng4 {[%emt 0:0:49]} 10. Qd2 {[%emt 0:5:16] h3 is the strong threat.} Kh7 {[%emt 0:0:56]} 11. O-O {[%emt 0:10:13]} a6 {[%emt 0:5:59]} 12. Be2 {[%emt 0:1:43]} Qb6 {[%emt 0:0:34]} 13. Rfb1 {[%emt 0:10:57]} Nge5 {[%emt 0:6:14]} 14. Ne1 {[%emt 0:11:13]} Qa5 {[%emt 0:4:23]} 15. Qc1 {[%emt 0:6:40]} g5 {[%emt 0:1:8]} 16. Bd2 {[%emt 0:1:33][%cal Yh2h4]} Qc7 {[%emt 0:0:10]} 17. a5 {[%emt 0:4:31]} Rb8 {[%emt 0:2:40]} 18. Na4 {[%emt 0:1:59]} f5 {[%emt 0:0:55]} 19. exf5 {[%emt 0:2:46]} Nf6 {[%emt 0:0:18]} 20. Nb6 {[%emt 0:1:15][%cal Yh2h4]} Bxf5 {[%emt 0:0:11]} 21. Qd1 {[%emt 0:6:50]} ({White should play} 21. Nf3 $11 )Rbe8 {[%emt 0:1:45]} (21... e6 $15 22. dxe6 Bxe6 )22. h3 {[%emt 0:3:20]} e6 {[%emt 0:1:17]} 23. Be3 {[%emt 0:0:39] [#]} (23. dxe6 $1 $15 d5 (23... Rxe6 24. Bc3 $11 )(23... Bxe6 24. Nf3 $15 )24. Nd3 )g4 $1 $17 {[%emt 0:1:48] Black is more active.} 24. hxg4 {[%emt 0:1:25]} Nfxg4 {[%emt 0:1:31]} 25. Ra3 {[%emt 0:0:43]} (25. Ra4 $17 Nxe3 26. fxe3 )Qf7 $19 {[%emt 0:0:26]} 26. Qd2 {[%emt 0:7:32] [#]} Bg6 {[%emt 0:5:39]} (26... Be4 $1 $19 27. f3 Nxe3 (27... Bxd5 $2 {too greedy.} 28. fxg4 Be4 29. Nd3 $18 )28. dxe6 Rxe6 (28... Nxf3+ 29. Nxf3 Rxe6 30. Rxe3 $16 )29. Rxe3 Bc6 )27. Bd1 $2 {[%emt 0:5:52]} (27. Nf3 $1 $15 )Nxe3 {[%emt 0:1:6]} (27... Be4 $19 {[%cal Re6d5]} 28. b4 exd5 29. bxc5 Qh5 )28. Rxe3 {[%emt 0:0:16]} exd5 {[%emt 0:0:9] Weighted Error Value: White=0.31/Black=0.26 (precise) .  Loses game:     	White=1     	---        Mistake:       	White=3     	Black=3      Inaccurate:     	White=6     	Black=1      OK:         	White=7     	Black=10     Best:        	White=1     	---        Strong:       	---       	Black=1} 0-1

[Event "Sheffield Masters 2024"]
[White "Pein,Jonathan"]
[Black "Kanyamarala,Trisha"]
[Site "Sheffield"]
[Round "5.2"]
[Annotator "RC"]
[Result "1-0"]
[Date "2024.04.12"]
[WhiteElo "2247"]
[BlackElo "2285"]
[PlyCount "87"]
[TimeControl "5400+30"]

1. e4 {[%emt 0:0:3]} c5 {[%emt 0:0:14]} 2. Nf3 {[%emt 0:0:4]} d6 {[%emt 0:0:6]} 3. d4 {[%emt 0:0:5]} cxd4 {[%emt 0:0:5]} 4. Nxd4 {[%emt 0:0:4]} Nf6 {[%emt 0:0:14]} 5. Nc3 {[%emt 0:0:6]} Nc6 {[%emt 0:0:15]} 6. Be3 {[%emt 0:0:13]} Ng4 {[%emt 0:0:10]} 7. Bb5 {[%emt 0:0:13]} Nxe3 {[%emt 0:0:7]} 8. fxe3 {[%emt 0:0:18]} Bd7 {[%emt 0:0:9]} 9. Bxc6 {[%emt 0:1:8]} bxc6 {[%emt 0:1:4]} 10. O-O {[%emt 0:0:23]} e6 {[%emt 0:1:19]} 11. e5 {[%emt 0:0:17]} Be7 {[%emt 0:1:4]} 12. Qh5 {[%emt 0:1:3]} O-O {[%emt 0:0:39]} 13. exd6 {[%emt 0:0:4]} Bxd6 {[%emt 0:0:29]} 14. Rad1 {[%emt 0:0:8]} Qc7 {[%emt 0:2:34]} 15. Ne4 {[%emt 0:0:14]} Be7 {[%emt 0:1:38]} 16. Ng5 {[%emt 0:0:8]} Bxg5 {[%emt 0:0:55]} 17. Qxg5 {[%emt 0:0:2]} c5 {[%emt 0:3:22]} 18. Nf3 {[%emt 0:1:16]} Bb5 {[%emt 0:2:52]} 19. Rf2 {[%emt 0:0:6]} f6 {[%emt 0:14:0]} 20. Qg4 {[%emt 0:1:8]} Rfe8 {[%emt 0:2:16]} 21. Rfd2 {[%emt 0:2:15]} Bc6 {[%emt 0:4:22]} 22. b3 {[%emt 0:6:50]} a5 {[%emt 0:3:17]} 23. Ne1 {[%emt 0:11:11]} a4 {[%emt 0:10:21]} 24. Nd3 {[%emt 0:1:45]} Bb5 {[%emt 0:4:13]} 25. c4 {[%emt 0:10:41]} Ba6 {[%emt 0:0:18]} 26. Nf4 {[%emt 0:1:15]} f5 {[%emt 0:8:13]} 27. Qg5 {[%emt 0:13:24]} h6 {[%emt 0:12:29]} 28. Qg6 {[%emt 0:4:56]} Qf7 {[%emt 0:1:23]} 29. Rd7 {[%emt 0:0:33]} Qxg6 {[%emt 0:1:7]} 30. Nxg6 {[%emt 0:0:2]} axb3 {[%emt 0:0:50]} 31. axb3 {[%emt 0:0:19]} Rab8 {[%emt 0:2:36]} 32. Rc7 {[%emt 0:21:3]} Kh7 {[%emt 0:1:27]} 33. Nf4 {[%emt 0:2:57]} Bc8 {[%emt 0:10:31]} 34. Ra1 {[%emt 0:4:17]} e5 {[%emt 0:2:33]} 35. Nd5 {[%emt 0:3:21]} Kg6 {[%emt 0:2:51]} 36. Raa7 {[%emt 0:0:15]} f4 {[%emt 0:0:27]} 37. Rxg7+ {[%emt 0:1:43]} Kf5 {[%emt 0:0:21]} 38. e4+ {[%emt 0:1:3]} Kxe4 {[%emt 0:0:8]} 39. Nf6+ {[%emt 0:0:32]} Ke3 {[%emt 0:0:11]} 40. Nxe8 {[%emt 0:0:13]} Rxb3 {[%emt 0:0:11]} 41. Ra1 {[%emt 0:0:32]} Bf5 {[%emt 0:1:12]} 42. Re7 {[%emt 0:2:36]} Kd4 {[%emt 0:0:34]} 43. Re1 {[%emt 0:1:9]} e4 {[%emt 0:0:17]} 44. Nd6 {[%emt 0:0:41]} 1-0

[Event "Sheffield Masters 2024"]
[White "O`Gorman,Tom"]
[Black "Dunnington,Angus J"]
[Site "Sheffield"]
[Round "5.3"]
[Annotator "RC"]
[Result "1-0"]
[Date "2024.04.12"]
[WhiteElo "2321"]
[BlackElo "2317"]
[PlyCount "87"]
[TimeControl "5400+30"]

1. e4 {[%emt 0:0:4]} g6 {[%emt 0:0:16]} 2. d4 {[%emt 0:0:7]} Bg7 {[%emt 0:0:24]} 3. Nf3 {[%emt 0:0:7]} d6 {[%emt 0:0:23]} 4. Be3 {[%emt 0:0:6]} Nf6 {[%emt 0:2:44]} 5. Nc3 {[%emt 0:0:10]} Ng4 {[%emt 0:1:13]} 6. Bf4 {[%emt 0:1:38]} e5 {[%emt 0:18:54]} 7. Bg5 {[%emt 0:2:52]} f6 {[%emt 0:0:24]} 8. Bh4 {[%emt 0:0:59]} Nc6 {[%emt 0:5:39]} 9. Bc4 {[%emt 0:9:49]} Na5 {[%emt 0:27:28]} 10. Be2 {[%emt 0:1:52]} exd4 {[%emt 0:1:27]} 11. Nxd4 {[%emt 0:1:10]} Ne5 {[%emt 0:0:20]} 12. O-O {[%emt 0:2:41]} O-O {[%emt 0:4:11]} 13. f4 {[%emt 0:4:40]} Nf7 {[%emt 0:1:31]} 14. Nd5 {[%emt 0:3:46]} c6 {[%emt 0:2:17]} 15. Nc3 {[%emt 0:2:2]} Qb6 {[%emt 0:4:36]} 16. Rb1 {[%emt 0:3:48]} f5 {[%emt 0:5:20]} 17. Bf2 {[%emt 0:1:51]} c5 {[%emt 0:4:55]} 18. Ndb5 {[%emt 0:1:37]} Qd8 {[%emt 0:0:26]} 19. e5 {[%emt 0:3:23]} dxe5 {[%emt 0:2:39]} 20. Bxc5 {[%emt 0:0:34]} a6 {[%emt 0:0:59]} 21. Qxd8 {[%emt 0:1:47]} Rxd8 {[%emt 0:1:34]} 22. Nc7 {[%emt 0:0:24]} Rb8 {[%emt 0:0:48]} 23. Ba7 {[%emt 0:0:39]} Bd7 {[%emt 0:3:12]} 24. Bxb8 {[%emt 0:0:8]} Rxb8 {[%emt 0:0:3]} 25. Rbd1 {[%emt 0:1:30]} Rd8 {[%emt 0:2:1]} 26. fxe5 {[%emt 0:0:38]} Bxe5 {[%emt 0:0:9]} 27. N7d5 {[%emt 0:0:8]} Nc6 {[%emt 0:1:13]} 28. Rfe1 {[%emt 0:1:36]} Kg7 {[%emt 0:0:56]} 29. Bf1 {[%emt 0:6:57]} b5 {[%emt 0:1:47]} 30. a3 {[%emt 0:1:25]} Be6 {[%emt 0:3:28]} 31. Nb4 {[%emt 0:0:49]} Rxd1 {[%emt 0:0:58]} 32. Rxd1 {[%emt 0:0:47]} Nb8 {[%emt 0:1:0]} 33. Nd3 {[%emt 0:0:51]} Bd6 {[%emt 0:0:29]} 34. b4 {[%emt 0:1:19]} Kf6 {[%emt 0:1:16]} 35. a4 {[%emt 0:1:2]} Bc4 {[%emt 0:1:2]} 36. axb5 {[%emt 0:0:25]} axb5 {[%emt 0:0:5]} 37. Nc5 {[%emt 0:0:39]} Nc6 {[%emt 0:0:31]} 38. Bxc4 {[%emt 0:1:25]} bxc4 {[%emt 0:0:11]} 39. Nd5+ {[%emt 0:0:16]} Ke5 {[%emt 0:2:4]} 40. Ne3 {[%emt 0:1:15]} Bxc5 {[%emt 0:0:15]} 41. bxc5 {[%emt 0:0:13]} c3 {[%emt 0:0:59]} 42. Nd5 {[%emt 0:1:4]} Nd4 {[%emt 0:0:41]} 43. Nxc3 {[%emt 0:0:8]} Nxc2 {[%emt 0:0:30]} 44. c6 {[%emt 0:0:43]} 1-0

[Event "Sheffield Masters 2024"]
[White "Chow,Samuel"]
[Black "Pal,Rohan"]
[Site "Sheffield"]
[Round "5.4"]
[Annotator "RC"]
[Result "1-0"]
[Date "2024.04.12"]
[WhiteElo "2350"]
[BlackElo "2142"]
[PlyCount "97"]
[TimeControl "5400+30"]

1. d4 {[%emt 0:0:6]} d5 {[%emt 0:0:3]} 2. c4 {[%emt 0:0:14]} e6 {[%emt 0:0:3]} 3. Nc3 {[%emt 0:0:11]} Be7 {[%emt 0:0:7]} 4. cxd5 {[%emt 0:0:39]} exd5 {[%emt 0:0:6]} 5. Bf4 {[%emt 0:0:23]} c6 {[%emt 0:0:16]} 6. e3 {[%emt 0:0:33]} Bf5 {[%emt 0:0:10]} 7. g4 {[%emt 0:0:27]} Be6 {[%emt 0:0:26]} 8. Qb3 {[%emt 0:0:37]} Qb6 {[%emt 0:1:55]} 9. f3 {[%emt 0:0:29]} Nd7 {[%emt 0:3:36]} 10. h4 {[%emt 0:1:2]} Ngf6 {[%emt 0:14:40]} 11. Nge2 {[%emt 0:1:19]} Qxb3 {[%emt 0:4:30]} 12. axb3 {[%emt 0:0:6]} Nb6 {[%emt 0:1:13]} 13. Ng3 {[%emt 0:2:13]} h6 {[%emt 0:5:42]} 14. Bd3 {[%emt 0:1:4]} g6 {[%emt 0:2:45]} 15. h5 {[%emt 0:10:25]} g5 {[%emt 0:1:11]} 16. Bc7 {[%emt 0:0:38]} Kd7 {[%emt 0:2:50]} 17. Be5 {[%emt 0:1:7]} Bd6 {[%emt 0:4:28]} 18. Nf5 {[%emt 0:8:21]} Bxf5 {[%emt 0:3:39]} 19. Bxf5+ {[%emt 0:0:20]} Ke7 {[%emt 0:0:6]} 20. Bxd6+ {[%emt 0:1:18]} Kxd6 {[%emt 0:2:20]} 21. Kd2 {[%emt 0:1:52]} a6 {[%emt 0:4:1]} 22. Ne2 {[%emt 0:2:32]} Ne8 {[%emt 0:3:2]} 23. e4 {[%emt 0:3:24]} dxe4 {[%emt 0:7:17]} 24. fxe4 {[%emt 0:0:16]} Ng7 {[%emt 0:1:3]} 25. Rhf1 {[%emt 0:1:38]} Rad8 {[%emt 0:2:0]} 26. Ra5 {[%emt 0:2:58]} Ne6 {[%emt 0:8:9]} 27. Ke3 {[%emt 0:14:11]} Ke7 {[%emt 0:1:4]} 28. Raa1 {[%emt 0:0:38]} Rd6 {[%emt 0:4:27]} 29. Rf2 {[%emt 0:3:37]} Ng7 {[%emt 0:4:56]} 30. Raf1 {[%emt 0:6:3]} Nxf5+ {[%emt 0:4:53]} 31. Rxf5 {[%emt 0:0:46]} f6 {[%emt 0:0:30]} 32. R5f2 {[%emt 0:4:24]} Re6 {[%emt 0:1:49]} 33. Kd3 {[%emt 0:0:44]} Nd7 {[%emt 0:8:4]} 34. Ng3 {[%emt 0:6:17]} c5 {[%emt 0:0:36]} 35. d5 {[%emt 0:2:4]} Rb6 {[%emt 0:2:1]} 36. Nf5+ {[%emt 0:1:12]} Kf7 {[%emt 0:0:11]} 37. Kc3 {[%emt 0:0:22]} Rb4 {[%emt 0:1:53]} 38. e5 {[%emt 0:5:13]} Nxe5 {[%emt 0:1:11]} 39. Nd6+ {[%emt 0:0:33]} Kg7 {[%emt 0:1:15]} 40. Rxf6 {[%emt 0:0:57]} Rd8 {[%emt 0:1:25]} 41. Re6 {[%emt 0:0:41]} Rxd6 {[%emt 0:0:34]} 42. Rxd6 {[%emt 0:0:20]} Rxg4 {[%emt 0:0:19]} 43. Re6 {[%emt 0:2:47]} Rg3+ {[%emt 0:0:22]} 44. Kc2 {[%emt 0:0:57]} Nd3 {[%emt 0:0:40]} 45. Re7+ {[%emt 0:1:43]} Kg8 {[%emt 0:0:6]} 46. d6 {[%emt 0:0:36]} Nb4+ {[%emt 0:0:3]} 47. Kc1 {[%emt 0:0:59]} Rd3 {[%emt 0:0:33]} 48. d7 {[%emt 0:0:30]} Nc6 {[%emt 0:0:10]} 49. Rd1 {[%emt 0:0:10]} 1-0

[Event "Sheffield Masters 2024"]
[White "Gourlay,Iain"]
[Black "Ledger,Andrew J"]
[Site "Sheffield"]
[Round "5.5"]
[Annotator "RC"]
[Result "1/2-1/2"]
[Date "2024.04.12"]
[WhiteElo "2307"]
[BlackElo "2336"]
[PlyCount "37"]
[TimeControl "5400+30"]

1. Nf3 {[%emt 0:0:6]} Nf6 {[%emt 0:0:10]} 2. g3 {[%emt 0:0:20]} g6 {[%emt 0:0:17]} 3. b3 {[%emt 0:0:22]} Bg7 {[%emt 0:0:16]} 4. Bb2 {[%emt 0:0:7]} c5 {[%emt 0:0:55]} 5. c4 {[%emt 0:0:38]} O-O {[%emt 0:0:35]} 6. Bg2 {[%emt 0:0:47]} d6 {[%emt 0:0:52]} 7. d4 {[%emt 0:3:40]} d5 {[%emt 0:1:22]} 8. Nbd2 {[%emt 0:5:3]} cxd4 {[%emt 0:1:16]} 9. Nxd4 {[%emt 0:4:10]} e5 {[%emt 0:2:47]} 10. Nc2 {[%emt 0:26:14]} d4 {[%emt 0:0:34]} 11. O-O {[%emt 0:2:22]} Re8 {[%emt 0:8:0]} 12. e3 {[%emt 0:9:55]} dxe3 {[%emt 0:21:30]} 13. Nxe3 {[%emt 0:0:59]} Nc6 {[%emt 0:2:46]} 14. Re1 {[%emt 0:12:5]} h5 {[%emt 0:2:52]} 15. Nd5 {[%emt 0:3:27]} Bg4 {[%emt 0:2:22]} 16. f3 {[%emt 0:3:59]} Bf5 {[%emt 0:3:30]} 17. Nxf6+ {[%emt 0:2:49]} Bxf6 {[%emt 0:3:20]} 18. Ne4 {[%emt 0:0:42]} Bxe4 {[%emt 0:1:49]} 19. Rxe4 {[%emt 0:0:32]} 1/2-1/2

[Event "Sheffield Masters 2024"]
[White "Nagy,Gabor"]
[Black "Ledger,Andrew J"]
[Site "Sheffield"]
[Round "6.1"]
[Annotator "TA"]
[Result "1/2-1/2"]
[Date "2024.04.13"]
[WhiteElo "2436"]
[BlackElo "2336"]
[PlyCount "57"]
[TimeControl "5400+30"]

{[%evp 15,57,27,26,27,19,13,39,12,18,20,17,11,3,4,3,0,0,0,14,4,12,13,22,10,8,0,4,0,0,0,0,0,0,0,0,0,0,0,0,0,0,0,0,-25]} 1. d4 Nf6 2. c4 e6 3. Nf3 Bb4+ 4. Nbd2 O-O 5. g3 c5 6. a3 Bxd2+ 7. Qxd2 cxd4 8. Bg2 d5 9. cxd5 Qxd5 10. Qxd4 Nc6 11. Qxd5 {White is slightly better.} Nxd5 {The position is equal.} 12. O-O b6 13. Re1 Ba6 14. Bd2 Rac8 15. Rac1 Rfd8 16. b4 Bb5 17. e4 Nf6 18. Bc3 Kf8 19. h3 h6 20. Ne5 Ke7 21. Ba1 Nxe5 22. Bxe5 Ne8 23. Bb2 f6 24. e5 f5 25. Rxc8 Rxc8 26. Rc1 Rd8 27. Bc3 Nc7 28. Be1 Rd7 29. Bb7 {An uneventful encounter.   Weighted Error Value: White=0.04 (flawless) /Black=0.04 (flawless) .  Inaccurate:     	White=1     	Black=1      OK:         	White=6     	Black=9} 1/2-1/2

[Event "Sheffield Masters 2024"]
[White "Pal,Rohan"]
[Black "Gourlay,Iain"]
[Site "Sheffield"]
[Round "6.2"]
[Annotator "TA"]
[Result "1/2-1/2"]
[Date "2024.04.13"]
[WhiteElo "2142"]
[BlackElo "2307"]
[PlyCount "94"]
[TimeControl "5400+30"]

{[%evp 11,94,5,5,0,0,0,0,6,6,0,0,5,12,-47,-7,-28,-4,-92,-71,-142,-138,-138,-105,-113,-57,-76,-75,-81,-50,-106,-75,-116,-84,-314,-283,-449,-462,-536,-449,-1113,-1108,-1879,-1494,-1460,212,215,212,220,218,148,115,0,0,0,0,0,6,0,0,0,0,0,0,0,0,0,0,0,0,0,0,-91,-89,-110,0,0,0,0,0,0,0,0,0,0,7]} 1. c4 e6 2. g3 d5 3. Bg2 Nf6 4. Nf3 Be7 5. O-O O-O 6. b3 d4 7. d3 c5 8. e3 Nc6 9. exd4 cxd4 10. Re1 Re8 11. Ba3 Nd7 12. Qd2 (12. Bxe7 $11 Qxe7 13. a3 )a5 13. Bxe7 Qxe7 14. Qb2 (14. Qe2 $11 {remains equal.} )Nc5 $17 15. Rd1 (15. Nxd4 $2 Nxd3 16. Nxc6 bxc6 $19 (16... Nxb2 17. Nxe7+ Rxe7 18. Nc3 $16 ))(15. Bf1 $142 )e5 16. Ne1 Bf5 17. Na3 e4 (17... Nb4 $17 {[%cal Rc5d3]} 18. Bf1 Bg4 )18. dxe4 $15 Bxe4 19. Nb5 Bxg2 20. Nxg2 (20. Kxg2 $15 d3 21. Nf3 )Rad8 $17 21. Nf4 (21. Nxd4 $2 Qf6 22. Qa3 Nb4 $19 )d3 22. a3 $2 (22. Kg2 $17 )Ne5 $19 23. Nc3 (23. Kg2 $142 )Qf6 24. Rab1 Qf5 25. h4 (25. Kg2 $142 )Nf3+ 26. Kf1 d2 27. Ncd5 Re1+ $4 {[%mdl 8192]} (27... Rxd5 $19 28. cxd5 Nd3 )28. Rxe1 $18 dxe1=Q+ 29. Rxe1 {[#] aiming for Ne7+.} Qg4 30. Qe2 Ne6 ({Inferior is} 30... Nxb3 31. Qe8+ Rxe8 32. Rxe8# )31. Ne3 (31. Nxe6 $2 Qh3# )({White should play} 31. Rd1 $16 )Nh2+ $11 (31... Nxf4 {simplifies} 32. Nxg4 Nxe2 33. Rxe2 h5 )32. Kg1 Qxe2 33. Rxe2 Nf3+ 34. Kg2 Nxh4+ 35. Kh3 {Nxe6 would now be deadly.} Nxf4+ 36. gxf4 {[%mdl 4096] Endgame. KRN-KRN} Ng6 37. Nd5 f6 {[%cal Yd8d5] And now ...Rxd5! would win.} 38. Kg3 Kf7 {Against Re6} 39. f5 Ne5 {[%cal Yb7b5]} 40. f4 Nc6 41. b4 (41. Re6 $11 {keeps the balance.} )axb4 $17 42. axb4 {[#]} Nd4 ({Black should try} 42... b5 $1 $17 {[%cal Rb5c4]} 43. Re6 (43. cxb5 $2 {perishes.} Nd4 $19 )Nd4 (43... bxc4 44. Rxc6 Rxd5 45. Kg4 $11 )44. Re7+ Kf8 )43. Re7+ $11 {The position is equal.} Kf8 44. Rxb7 {Kg4 is the strong threat.} Nxf5+ 45. Kg4 Nd6 {[%csl Yb7,Yc4][%cal Yf5d6,Yd6c4,Yc4e3][%mdl 32]} 46. Rc7 Nxc4 47. Nxf6 Ne3+ {Never resign too early!   Weighted Error Value: White=0.68/Black=0.45.  Loses game:     	White=1     	---        Mistake:       	White=8     	Black=2      Inaccurate:     	White=2     	Black=2      OK:         	White=15    	Black=22     Best:        	White=2     	Black=3} 1/2-1/2